Cogmind - Beta 10.2 *** ADVENTURER MODE // 2021.01.18 @ 13:50:21 Player: Chrimi Result: Destroyed by Y-45 Defender with Beam Rifle Performance ------------- Evolutions (1) 500 Regions Visited (2) 400 Robots Destroyed (30) 150 Value Destroyed (679) 679 Prototype IDs (1) 20 Alien Tech Used (0) 0 Bonus (1500) 1500 TOTAL SCORE: 3249 Bonus ------- Scavenger 1000 Unstable Evolution 500 Cogmind --------- Core Integrity 0/400 Matter 272/300 Energy 99/100 System Corruption 2% Temperature Cool (9) Movement Core (350) Ox6 Location -9/Materials Parts ------- > --- POWER (1) -------- (None) > --- PROPULSION (3) --- (None) > --- UTILITY (2) ------ Large Storage Unit > --- WEAPON (3) ------- Heavy Assault Rifle > --- INVENTORY (10) --- Light Ion Engine Light Ion Engine Heat Sink Heat Sink Large Matter Pod (150) Peak State ------------ > --- POWER ------------ Ion Engine > --- PROPULSION ------- Improved Aluminum Leg Hover Unit > --- UTILITY ---------- Large Storage Unit Medium Armor Plating > --- WEAPON ----------- EM Shotgun Light EM Pulse Cannon Light EM Pulse Cannon > --- INVENTORY -------- Light Ion Engine Large Matter Pod Assault Rifle [Rating: 13] Favorites ----------- Power Ion Engine Engine Ion Engine Propulsion Hover Unit Leg Aluminum Leg Hover Unit Hover Unit Flight Unit Flight Unit Utility Small Storage Unit Device ECM Suite Storage Small Storage Unit Protection Medium Armor Plating Weapon Light EM Pulse Cannon Energy Gun EM Shotgun Energy Cannon Light EM Pulse Cannon Ballistic Gun Light Assault Rifle Special Weapon Mining Laser Build | -11 -10 -9 ------- Run | Scr Mat Mat Slots Evolved 2 | . . 2 Power . | . . . Propulsion 1 | . . 1 Utility . | . . . Weapon 1 | . . 1 Parts Attached 30 | 6 17 7 Power 3 | 1 2 . Engine 3 | 1 2 . Core . | . . . Reactor . | . . . Propulsion 9 | 2 6 1 Treads . | . . . Leg 3 | 2 . 1 Wheel . | . . . Hover 2 | . 2 . Flight 4 | . 4 . Utility 4 | 1 2 1 Device 1 | . 1 . Storage 2 | 1 . 1 Processor . | . . . Hackware . | . . . Protection 1 | . 1 . Artifact . | . . . Weapon 14 | 2 7 5 Energy Gun 2 | . . 2 Energy Cannon 2 | . 1 1 Ballistic Gun 8 | 2 4 2 Ballistic Cannon . | . . . Launcher . | . . . Special Weapon 2 | . 2 . Impact Weapon . | . . . Slashing Weapon . | . . . Piercing Weapon . | . . . Special Melee Weapon . | . . . Unidentified Prototypes . | . . . Parts Lost 15 | . 7 8 Power 2 | . 1 1 Propulsion 4 | . 2 2 Utility 2 | . 1 1 Weapon 7 | . 3 4 Highest Loss Streak 7 | . 7 6 Average Slot Usage (%) 81 | . 85 75 Engine 12 | . 13 10 Leg 5 | . 5 6 Hover 9 | . 8 10 Flight 2 | . 4 . Device 2 | . 4 . Storage 12 | . 14 11 Protection 7 | . 5 9 Energy Gun 3 | . . 7 Energy Cannon 10 | . 5 17 Ballistic Gun 13 | . 21 3 Naked Turns . | . . . Heaviest Build 39 | 9 22 39 Greatest Support 20 | 20 20 13 Greatest Overweight (x) 6 | . 3 6 Average Overweight (x) 1 | . 1 2 Largest Inventory Capacity 10 | 6 6 10 Average Capacity 7 | 5 6 9 Most Carried 6 | 2 5 6 Average Carried 2 | 1 1 2 Final Capacity 10 | 6 6 10 Final Carried 5 | 2 3 5 Class Distribution -------------------- 75% | Mutant 24% | Tank Dominant Class ---------------- Mutant | -10/Materials Tank | -9/Materials Resources | -11 -10 -9 ----------- Run | Scr Mat Mat Matter Collected 665 | 177 288 200 Remotely . | . . . Salvage Created 1047 | . 456 591 Parts 56 | . 24 32 Haulers Intercepted . | . . . Recyclers Shooed 4 | . 4 . Parts Field Recycled . | . . . Retrieved Matter . | . . . Parts Self-Destructed . | . . . Prevented . | . . . Kills | -11 -10 -9 ------- Run | Scr Mat Mat Combat Hostiles Destroyed 24 | . 10 14 Guns 15 | . 10 5 Cannons 8 | . . 8 Classes Destroyed 6 | . 4 2 Builder 2 | . . 2 Recycler 3 | . 3 . Watcher 1 | . 1 . Swarmer 10 | . 6 4 Grunt 11 | . 4 7 Sentry 3 | . . 3 Best Kill Streak 5 | . 5 5 Combat Bots Only 4 | . 3 4 Max Kills in Single Turn 2 | . 2 2 Gunslinging 1 | . 1 . Exploded . | . . . Melee . | . . . Uniques/NPCs Destroyed . | . . . Combat | -11 -10 -9 -------- Run | Scr Mat Mat Damage Taken 1627 | . 621 1006 Core 513 | . 106 407 Absorbed by Shields . | . . . Core Remaining (%) 78 | 100 57 . Volleys Fired 76 | . 44 32 Largest 3 | . 2 3 Hottest 200 | . 200 168 Shots Fired 141 | . 86 55 Gun 105 | . 84 21 Cannon 34 | . . 34 Launcher . | . . . Special 2 | . 2 . Kinetic 90 | . 84 6 Thermal 15 | . 2 13 Explosive . | . . . Electromagnetic 36 | . . 36 Robot Hit Streak 24 | . 24 20 Robot Miss Streak 4 | . 4 2 Penetration Max . | . . . Secondary Targets 6 | . 6 . Max Gunslinging Chain 1 | . 1 . Shots Hit Robots 113 | . 70 43 Core Hits 46 | . 26 20 Critical Hits 1 | . . 1 Critical Kills 1 | . . 1 Critical Parts Destroyed . | . . . Melee Attacks . | . . . Impact . | . . . Slashing . | . . . Piercing . | . . . Sneak Attacks . | . . . Combat Hostiles . | . . . Follow-up Attacks . | . . . Damage Inflicted 1485 | . 614 871 Guns 865 | . 566 299 Cannons 511 | . . 511 Explosions 61 | . . 61 Melee . | . . . Ramming . | . . . Kinetic 664 | . 566 98 Thermal 294 | . 48 246 Explosive . | . . . Electromagnetic 527 | . . 527 Impact . | . . . Slashing . | . . . Piercing . | . . . Highest Corruption 2 | . . 2 Average Corruption 2 | . . 2 Corruption Purged . | . . . Overload Shots . | . . . Overflow Damage 3 | . . 3 Projectiles 3 | . . 3 Explosions . | . . . Melee . | . . . Knockbacks . | . . . Impact . | . . . Kinetic . | . . . Secondary . | . . . Self-Inflicted Damage . | . . . Shots . | . . . Rammed 1 | . . 1 Targets Rammed 1 | . . 1 Kicked . | . . . Crushed . | . . . Highest Temperature 234 | . 76 234 Average Temperature 74 | . 19 95 Received Heat Transfer 645 | . 297 348 Siege Activations . | . . . Robots Corrupted . | . . . Combat Hostiles . | . . . Parts Fried 6 | . . 6 Impact Corruptions . | . . . Robots Melted 1 | . . 1 Combat Hostiles 1 | . . 1 Parts Melted 1 | . . 1 Heat Transferred 607 | . 100 507 Parts Sabotaged . | . . . Parts Stolen . | . . . Parts Stripped . | . . . Power Chain Reactions 2 | . . 2 Missiles Intercepted . | . . . Alert | -11 -10 -9 ------- Run | Scr Mat Mat Peak Influence 208 | . 187 208 Initial 21 | . . 21 Average 76 | . 90 67 Maximum Alert Level 1 | . . 1 Low Security (%) 99 | 100 100 99 Level 1 . | . . . Level 2 . | . . . Level 3 . | . . . Level 4 . | . . . Level 5 . | . . . High Security . | . . . Max Security . | . . . Squads Dispatched 2 | . . 2 Investigation 1 | . . 1 Extermination . | . . . Reinforcement 1 | . . 1 Assault . | . . . Garrison . | . . . Intercept . | . . . Construction Impeded 1 | . . 1 Haulers Reinforced . | . . . Stealth | -11 -10 -9 --------- Run | Scr Mat Mat Distress Signals 1 | . 1 . Communications Jammed . | . . . Distress Signals . | . . . Times Spotted 37 | . 16 21 Peak Tracking Total 7 | . 4 7 Tactical Retreats 1 | . 1 . Traps | -11 -10 -9 ------- Run | Scr Mat Mat Traps Triggered 1 | . . 1 Indirectly . | . . . Trap Hack Attempts . | . . . Triggered . | . . . Disarmed . | . . . Reprogrammed . | . . . Reused . | . . . Traps Extracted . | . . . Installed . | . . . Triggered . | . . . Machines | -11 -10 -9 ---------- Run | Scr Mat Mat Machines Disabled . | . . . Max in Single Turn . | . . . Machines Sabotaged . | . . . Garrisons Compromised . | . . . Overloaded Fab Kills . | . . . Fab Network Shutdowns . | . . . Hacking | -11 -10 -9 --------- Run | Scr Mat Mat Machines Accessed 3 | . 1 2 Terminals 2 | . 1 1 Fabricators . | . . . Repair Stations . | . . . Recycling Units . | . . . Scanalyzers 1 | . . 1 Garrison Access . | . . . Total Hacks 5 | . 1 4 Successful 4 | . 1 3 Failed 1 | . . 1 Catastrophic . | . . . Database Lockouts . | . . . Manual 2 | . 1 1 Terminals 3 | . 1 2 Fabricators . | . . . Repair Stations . | . . . Recycling Units . | . . . Scanalyzers 2 | . . 2 Garrison Access . | . . . Terminal Hacks 2 | . 1 1 Maintenance Status 1 | . . 1 Zone Layout 1 | . 1 . Fabricator Hacks . | . . . Repair Station Hacks . | . . . Recycling Unit Hacks . | . . . Scanalyzer 2 | . . 2 Insert Component 1 | . . 1 Analyze 1 | . . 1 Garrison Access Hacks . | . . . Unauthorized Hacks . | . . . Terminals . | . . . Fabricators . | . . . Repair Stations . | . . . Recycling Units . | . . . Scanalyzers . | . . . Garrison Access . | . . . Data Cores Recovered . | . . . Used . | . . . Hacking Detections 1 | . . 1 Full Trace Events . | . . . Feedback Events . | . . . Feedback Blocked . | . . . Robot Schematics Acquired . | . . . Robots Built . | . . . Matter . | . . . Time . | . . . Total Robot Build Rating . | . . . Part Schematics Acquired 1 | . . 1 Parts Built . | . . . Matter . | . . . Time . | . . . Total Part Build Rating . | . . . Parts Repaired . | . . . Time . | . . . Parts Recycled . | . . . Recycled Matter . | . . . Retrieved Matter . | . . . Retrieved Components . | . . . Parts Scanalyzed 1 | . . 1 Part Schematics Acquired 1 | . . 1 Parts Damaged . | . . . Bothacking | -11 -10 -9 ------------ Run | Scr Mat Mat Used RIF Installer . | . . . Robots Hacked . | . . . Non-combat . | . . . Combat . | . . . Robot Hacks Applied . | . . . Relay Couplers Released . | . . . Robots Rewired . | . . . Allies Hacked . | . . . Hacks Repelled . | . . . Allies | -11 -10 -9 -------- Run | Scr Mat Mat Total Allies . | . . . Largest Group . | . . . Highest-Rated Group . | . . . Highest-Rated Ally . | . . . Total Orders . | . . . Ally Attacks . | . . . Total Damage . | . . . Kills . | . . . Allies Corrupted . | . . . Allies Melted . | . . . Intel | -11 -10 -9 ------- Run | Scr Mat Mat Robot Analysis Total . | . . . Derelict Logs Recovered . | . . . Drone Launches . | . . . Drone Recoveries . | . . . Exploration | -11 -10 -9 ------------- Run | Scr Mat Mat Turns Passed 1456 | 62 791 603 Spaces Moved 675 | 45 403 227 Core 18 | 8 3 7 Treads . | . . . Legs 271 | 37 69 165 Wheels . | . . . Hover 306 | . 251 55 Flight 80 | . 80 . Fastest Speed 37 | 50 37 150 Average Speed 173 | 107 157 215 Slowest Speed 420 | 120 240 420 Overloaded Moves . | . . . Propulsion Burnouts . | . . . Robots Hopped . | . . . Cave-ins Triggered . | . . . Exploration Rate (%) 28 | 3 53 28 Regions Visited 2 Branch Regions . Pre-discovered Areas . | . . . Known Exits Taken . | . . . Unknown Exits Taken 2 | 1 1 . Scrap Searched . | . . . Spaces Dug . | . . . Terrain Destroyed 9 | . . 9 Melee . | . . . Projectile . | . . . AOE 9 | . . 9 Terrain Rammed . | . . . Walls Destroyed . | . . . Machines Disabled . | . . . Actions | -11 -10 -9 --------- Run | Scr Mat Mat Total 831 | 58 484 289 Wait 15 | . 5 10 Move 673 | 44 402 227 Hop . | . . . Pick Up 29 | 8 12 9 Fast Attach . | . . . Attach 17 | 6 7 4 Detach . | . . . Swap 13 | . 10 3 Drop 7 | . 4 3 Fire 76 | . 44 32 Melee . | . . . Ram 1 | . . 1 Kick . | . . . Crush . | . . . Escape Stasis . | . . . Rewire . | . . . Trap . | . . . Miscellaneous . | . . . Route ------- -11/Scrapyard -10/Materials (discovered 3 exits: *Mat x2 / [*Min]) -9/Materials (discovered 2 exits: [*Mat] / [*Min]) History --------- Turn | Location | Event 10 | -11/Scrapyard | Discovered new exit (range 15) 63 | -11/Scrapyard | Entered Materials 271 | -10/Materials | Discovered new exit (range 9) 318 | -10/Materials | Build established: Mutant 385 | -10/Materials | Lost 7 parts (1p2n1u3w) 479 | -10/Materials | Discovered new exit (range 13) 627 | -10/Materials | Discovered new exit (range 12) 854 | -10/Materials | Entered another Materials area 854 | -9/Materials | Evolved 2 slots: Propulsion x1, Weapon x1 1151 | -9/Materials | Discovered new exit (range 16) 1198 | -9/Materials | Discovered new exit (range 15) 1432 | -9/Materials | Core integrity fell below 50% 1447 | -9/Materials | Core integrity fell below 20% 1451 | -9/Materials | Lost 6 parts (1p1n1u3w) 1457 | -9/Materials | Destroyed by Y-45 Defender with Beam Rifle Last Messages --------------- 01412_ R-06 Scavenger collects Imp. Heat Sink. 01412_ U-05 Engineer lays Concrete. 01416_ K-01 Serf collects debris. 01417_ R-06 Scavenger collects Welding Torch. 01418_ Hover Unit destroyed. 01420_ R-06 Scavenger collects Terrain Scan Processor. 01420_ Ion Engine destroyed. 01423_ R-06 Scavenger collects Particle Gun. 01425_ Acquired 5 matter. 01428_ Slammed into R-06 Scavenger. 01428_ Destabilizing: System corrupted (+2). 01433_ K-01 Serf destroyed. 01434_ Acquired Lgt. Ion Engine. 01441_ Acquired Heat Sink. 01444_ R-06 Scavenger collects Wheel. 01445_ Acquired Hvy. Assault Rifle. 01447_ S-10 Pest destroyed. 01450_ U-05 Engineer destroyed. 01454_ R-06 Scavenger collects Wheel. 01457_ G-34 Mercenary destroyed. Map ----- +----------------------------------------------------+ | ????????????????????????????????????? ????###? | | ?????????????????????????????????????## ???????? | | ??????????????????????????????????????# ???????? | | ??????????????????????????????????????? ???????? | | ?????????????????????????????????????????????????? | | ?????????????????????????????????????????????????? | | ?????????????????????????????????????????????????? | | ?????????????????????????????????????????????????? | | ?????????????????????????????????????????????????? | | ?????????????????????????????????????????????????? | | ?????????????????????????????????????????????????? | | ?????????????????????????????????????????????????? | | ?????????????????????????????????????????????????? | | ????????????????????#????????????????????????????? | | ????????????????????# ???????????????????????????? | | ????????????????????# ???????????????????????????? | | ????????????????????# ????# ""??????????????????# | | ????????????????????# ????# """???????????????? # | | ????????????????????#w ????# """???????????????? # | | ????????????????????# ???? ?????????????? # | | ????????????????????# ?????? ????????????? # | | ????????????????????# ###???? ?#########? ?? | | ??????????????####### =% #######+## ##+###" | | ?????????????? * !%r% % ## | | ????????????????????# % %%s% s < ! | | ????????????????????# @ =%Y% r ## | | ????????????????????# #######+## ## #= | | ????????????????????###+###????? # "|"|" ## ## | | ????????????????????? ???????? #""|"|""## | | ???????????????????? ""???????? ########## ^ | | ??????????????????? ""????????? #????????# | | ?????????????????? "????????? #????????# | | ?????????????????# "?????????"" #????????# "Y" | | ?????????????????????????????""" #????????/ """ | | ?????????????????????????????""" #????????# | | ??????????????????????????????? #????????# | | ??????????????????????????????? #????????###### | | ??????????????????????????????? #?????????????? | | ???????????????????????????????## #??????????????? | | ?????????????????????????????????#???????????????? | | ?????????????????????????????????????????????????? | | ?????????????????????????????????????????????????? | | ?????????????????????????????????????????????????? | | ?????????????????????????????????????????????????? | | ?????????????????????????????????????????????????? | | ?????????????????????????????????????????????????? | | ?????????????????????????????????????????????????? | | ?????????????????????????????????????????????????? | | ?????????????????????????????????????????????????? | | ?????????????????????????????????????????????????? | +----------------------------------------------------+ Best States ------------- Heat Dissipation 28 Energy Generation 10 Energy Capacity 250 Matter Stores 300 Matter Capacity 300 Sight Range 16 Terrain Scan Density 10 ECM Strength 1 Armor Coverage 225 Resistance: KI 20 Resistance: TH 20 Resistance: EX 20 Resistance: EM 20 Resistance: I 20 Resistance: S 20 Resistance: P 20 Evasion (%) 50 Offensive Hacking 10 Item Schematics ----------------- Imp. Medium Laser | -9/Materials | Scanalyzed Robot Schematics ------------------ None Fabricated ------------ Nothing Alien Tech Used ----------------- None Achievements -------------- None Challenges ------------ Scavenger Unstable Evolution Game ------ Seed XenonCloakAutocannon Manual? 0 Play Time 00:14:54 Cumulative 19.4 hours Start 2021.01.18 @ 00:19:18 End 2021.01.18 @ 13:50:21 Sessions 3 Manual Loads 0 Difficulty Adventurer Special Mode None Game No. 5 Rogue 0 Adventurer 5 Explorer 0 Win Type - Total 3 Types 3/0/0/0/0/0/0/0/0 Lore% 8 Gallery% 20 Achievement% 20 Wizard Run 0 Options --------- ASCII 0 Keyboard 0 Movement Mouse Keybinds 0 Fullscreen 1 Font 18/SmallcapsGlow Map View 76x50 Tactical HUD 1 Map Filters NONE Filters NONE Steam 1 RUN: c776d4d0-8d2f-4f47-9900-a42d3c0a1fe3